fUSD/lending_fUSD_20260630
["ID","MTS","AMOUNT","RATE_DAILY","PERIOD"]
[426697863,1782749452000,-300.0,0.00033802,2]
[426697868,1782749452000,-569.01654071,0.00033802,2]
[426697865,1782749452000,-300.0,0.00033802,2]
[426697869,1782749452000,-300.0,0.00033802,2]
[426697867,1782749452000,-300.0,0.00033802,2]
[426697866,1782749452000,-311.22255108,0.00033802,2]
[426697870,1782749452000,-300.0,0.00033802,2]
[426697871,1782749452000,-300.0,0.00033802,2]
[426697884,1782749452000,-300.0,0.00033802,2]
[426697873,1782749452000,-300.0,0.00033802,2]
[426697872,1782749452000,-300.0,0.00033802,2]
[426697874,1782749452000,-300.0,0.00033802,2]
[426697875,1782749452000,-513.95923093,0.00033802,2]
[426697878,1782749452000,-300.0,0.00033802,2]
[426697881,1782749452000,-300.0,0.00033802,2]
[426697876,1782749452000,-300.0,0.00033802,2]
[426697880,1782749452000,-300.0,0.00033802,2]
[426697877,1782749452000,-584.66801755,0.00033802,2]
[426697879,1782749452000,-454.26701287,0.00033802,2]
[426697883,1782749452000,-300.0,0.00033802,2]
[426697908,1782749452000,-300.0,0.00033802,2]
[426697902,1782749452000,-300.0,0.00033802,2]
[426697909,1782749452000,-300.0,0.00033802,2]
[426697932,1782749452000,-300.0,0.00033802,2]
[426697931,1782749452000,-300.0,0.00033802,2]
[426697936,1782749452000,-300.0,0.00033802,2]
[426697939,1782749452000,-300.0,0.00033802,2]
[426697938,1782749452000,-300.0,0.00033802,2]
[426697941,1782749452000,-1807.30940739,0.00033802,2]
[426697942,1782749452000,-300.0,0.00033802,2]
[426697937,1782749452000,-300.0,0.00033802,2]
[426697943,1782749452000,-300.0,0.00033802,2]
[426697935,1782749452000,-345.7536,0.00033802,2]
[426697940,1782749452000,-954.30228826,0.00033802,2]
[426697947,1782749452000,-618.65120509,0.00033885,2]
[426697948,1782749452000,-368.51,0.000339,120]
[426697945,1782749452000,-300.0,0.00033802,2]
[426697950,1782749452000,-502.0,0.00033925,17]
[426697952,1782749452000,-172.04424445,0.00033937,2]
[426697951,1782749452000,-151.09934801,0.00033929,2]
[426697949,1782749452000,-10351.40320883,0.000339,2]
[426697953,1782749452000,-312.03666516,0.00033956,2]
[426697907,1782749452000,-496.30087066,0.00033802,2]
[426697946,1782749452000,-393.21,0.00033856,3]
[426697934,1782749452000,-300.0,0.00033802,2]
[426697944,1782749452000,-576.43989485,0.00033802,2]
[426697929,1782749452000,-300.0,0.00033802,2]
[426697933,1782749452000,-300.0,0.00033802,2]
[426697913,1782749452000,-300.0,0.00033802,2]
[426697916,1782749452000,-301.01762354,0.00033802,2]
[426697914,1782749452000,-300.0,0.00033802,2]
[426697915,1782749452000,-300.50056821,0.00033802,2]
[426697912,1782749452000,-607.84242655,0.00033802,2]
[426697910,1782749452000,-300.0,0.00033802,2]
[426697911,1782749452000,-300.0,0.00033802,2]
[426697918,1782749452000,-300.0,0.00033802,2]
[426697920,1782749452000,-300.0,0.00033802,2]
[426697917,1782749452000,-300.0,0.00033802,2]
[426697921,1782749452000,-730.12015411,0.00033802,2]
[426697919,1782749452000,-536.77715252,0.00033802,2]
[426697923,1782749452000,-300.0,0.00033802,2]
[426697926,1782749452000,-302.16203863,0.00033802,2]
[426697925,1782749452000,-300.0,0.00033802,2]
[426697924,1782749452000,-300.0,0.00033802,2]
[426697922,1782749452000,-300.0,0.00033802,2]
[426697927,1782749452000,-300.0,0.00033802,2]
[426697928,1782749452000,-300.0,0.00033802,2]
[426697930,1782749452000,-300.0,0.00033802,2]
[426697984,1782749453000,-785.0,0.00034398,2]
[426697988,1782749453000,-1500.0,0.000344,7]
[426697987,1782749453000,-785.0,0.00034398,2]
[426697985,1782749453000,-785.0,0.00034398,2]
[426697986,1782749453000,-785.0,0.00034398,2]
[426697992,1782749453000,-5000.0,0.00034481,2]
[426697989,1782749453000,-6896.2026673,0.00034481,2]
[426697983,1782749453000,-785.0,0.00034398,2]
[426697993,1782749453000,-5000.0,0.00034481,2]
[426697990,1782749453000,-5000.0,0.00034481,2]
[426697981,1782749453000,-785.0,0.00034398,2]
[426697991,1782749453000,-5000.0,0.00034481,2]
[426698002,1782749453000,-151.0,0.00034591,7]
[426697994,1782749453000,-10351.40320883,0.000345,2]
[426698005,1782749453000,-151.0,0.00034591,7]
[426697998,1782749453000,-151.09934801,0.00034569,2]
[426697996,1782749453000,-800.0,0.000345,7]
[426697997,1782749453000,-2280.56935788,0.0003452,7]
[426697999,1782749453000,-151.0,0.00034591,7]
[426698004,1782749453000,-151.0,0.00034591,7]
[426698001,1782749453000,-151.0,0.00034591,7]
[426698003,1782749453000,-151.0,0.00034591,7]
[426698007,1782749453000,-152.0,0.00034591,7]
[426697982,1782749453000,-785.0,0.00034398,2]
[426697995,1782749453000,-800.0,0.000345,7]
[426697980,1782749453000,-785.0,0.00034398,2]
[426697957,1782749453000,-1433.75651503,0.0003398,2]
[426697978,1782749453000,-198.03,0.0003435,120]
[426697954,1782749453000,-1455.30492466,0.0003398,2]
[426697956,1782749453000,-1458.65569404,0.0003398,2]
[426697955,1782749453000,-1555.38881044,0.0003398,2]
[426698006,1782749453000,-152.0,0.00034591,7]
[426697958,1782749453000,-425.34860366,0.00034,2]
[426697959,1782749453000,-67399.5685899,0.00034,2]
[426697960,1782749453000,-300.0,0.00034,2]
[426697961,1782749453000,-216.58458871,0.00034,30]
[426697964,1782749453000,-150.0,0.00034002,2]
[426697966,1782749453000,-785.0,0.00034028,2]
[426697968,1782749453000,-785.0,0.00034028,2]
[426697971,1782749453000,-333.83,0.00034151,120]
[426697963,1782749453000,-800.0,0.00034,7]
[426697967,1782749453000,-785.0,0.00034028,2]
[426697969,1782749453000,-502.0,0.000341,30]
[426697962,1782749453000,-800.0,0.00034,7]
[426697970,1782749453000,-346.36363636,0.00034118,2]
[426697972,1782749453000,-10351.40320883,0.000342,2]
[426697976,1782749453000,-600.0,0.00034247,120]
[426697974,1782749453000,-600.0,0.00034247,118]
[426697975,1782749453000,-600.0,0.00034247,119]
[426697973,1782749453000,-302.0,0.00034246,14]
[426697977,1782749453000,-151.09934801,0.00034249,2]
[426697979,1782749453000,-738.70849652,0.0003435,120]
[426697965,1782749453000,-793.99279464,0.00034028,2]
[426698008,1782749453000,-151.0,0.00034591,7]
[426698000,1782749453000,-151.0,0.00034591,7]
[426698011,1782749453000,-151.0,0.00034591,7]
[426698039,1782749453000,-186.84,0.00034943,60]
[426698041,1782749453000,-200.0,0.00034974,7]
[426698050,1782749453000,-1500.0,0.00035,2]
[426698051,1782749453000,-1500.0,0.00035,2]
[426698040,1782749453000,-333.83,0.00034972,120]
[426698049,1782749453000,-1500.0,0.00035,2]
[426698046,1782749453000,-424.0,0.00035,30]
[426698043,1782749453000,-200.0,0.00034974,7]
[426698047,1782749453000,-364.00622079,0.00035,30]
[426698044,1782749453000,-452.81055652,0.00034989,2]
[426698042,1782749453000,-200.0,0.00034974,7]
[426698048,1782749453000,-25199.07845607,0.00035,2]
[426698054,1782749453000,-1500.0,0.00035,2]
[426698052,1782749453000,-1500.0,0.00035,2]
[426698053,1782749453000,-1500.0,0.00035,2]
[426698055,1782749453000,-1500.0,0.00035,2]
[426698056,1782749453000,-4246.73583235,0.00035,7]
[426698062,1782749453000,-2303.63313041,0.00035,30]
[426698057,1782749453000,-2750.84293219,0.00035,2]
[426698063,1782749453000,-216.58458871,0.00035,30]
[426698059,1782749453000,-2812.82922078,0.00035,10]
[426698060,1782749453000,-3170.53708571,0.00035,2]
[426698061,1782749453000,-1734.01008843,0.00035,30]
[426698009,1782749453000,-151.0,0.00034591,7]
[426698058,1782749453000,-8331.26488816,0.00035,30]
[426698036,1782749453000,-500.0,0.00034902,120]
[426698037,1782749453000,-160.0,0.00034904,11]
[426698045,1782749453000,-6465.9985,0.00035,2]
[426698035,1782749453000,-500.0,0.00034902,120]
[426698010,1782749453000,-151.0,0.00034591,7]
[426698013,1782749453000,-159.0,0.00034741,30]
[426698034,1782749453000,-437.37,0.000349,7]
[426698014,1782749453000,-320.0,0.00034741,30]
[426698012,1782749453000,-2065.71,0.000346,30]
[426698015,1782749453000,-225.0,0.00034741,30]
[426698017,1782749453000,-158.0,0.00034759,30]
[426698018,1782749453000,-611.0,0.00034759,30]
[426698021,1782749453000,-588.0,0.00034762,30]
[426698019,1782749453000,-153.0,0.00034759,30]
[426698020,1782749453000,-157.0,0.00034759,30]
[426698023,1782749453000,-263334.0,0.0003478,30]
[426698016,1782749453000,-186.83,0.00034743,60]
[426698028,1782749453000,-502.0,0.00034866,18]
[426698032,1782749453000,-10351.40320883,0.000349,2]
[426698024,1782749453000,-152.0,0.00034791,8]
[426698033,1782749453000,-1580.07,0.000349,30]
[426698031,1782749453000,-307.00013613,0.000349,120]
[426698038,1782749453000,-2336.0,0.00034904,11]
[426698030,1782749453000,-192.27096766,0.000349,120]
[426698027,1782749453000,-388.35,0.00034854,3]
[426698025,1782749453000,-1500.0,0.00034795,2]
[426698026,1782749453000,-186.83,0.00034843,60]
[426698022,1782749453000,-154.0,0.00034762,30]
[426698029,1782749453000,-151.09934801,0.00034889,2]
[426698107,1782749454000,-151.0,0.00035531,7]
[426698103,1782749454000,-151.0,0.00035531,7]
[426698108,1782749454000,-151.0,0.00035531,7]
[426698104,1782749454000,-151.0,0.00035531,7]
[426698101,1782749454000,-151.0,0.00035531,7]
[426698095,1782749454000,-800.0,0.000355,7]
[426698096,1782749454000,-200.0,0.00035504,10]
[426698094,1782749454000,-800.0,0.000355,7]
[426698098,1782749454000,-235.16818197,0.00035523,120]
[426698093,1782749454000,-270.38993051,0.0003549,2]
[426698110,1782749454000,-500.0,0.00035534,2]
[426698097,1782749454000,-500.0,0.00035523,120]
[426698102,1782749454000,-151.0,0.00035531,7]
[426698113,1782749454000,-481661.23557258,0.00035593,2]
[426698105,1782749454000,-151.0,0.00035531,7]
[426698111,1782749454000,-2280.56935788,0.00035541,7]
[426698109,1782749454000,-151.0,0.00035531,7]
[426698112,1782749454000,-2280.56935788,0.00035541,7]
[426698114,1782749454000,-10351.40320883,0.000356,2]
[426698115,1782749454000,-7749.277731,0.00035609,2]
[426698124,1782749454000,-151.0,0.00035616,30]
[426698116,1782749454000,-388.61,0.00035609,2]
[426698125,1782749454000,-151.0,0.00035616,30]
[426698120,1782749454000,-151.0,0.00035616,30]
[426698123,1782749454000,-151.0,0.00035616,30]
[426698088,1782749454000,-100000.0,0.00035455,90]
[426698106,1782749454000,-151.0,0.00035531,7]
[426698091,1782749454000,-152.5325826,0.00035457,15]
[426698071,1782749454000,-500.0,0.00035072,120]
[426698090,1782749454000,-69890.74244101,0.00035455,30]
[426698117,1782749454000,-177.38,0.00035616,2]
[426698066,1782749454000,-800.0,0.00035,7]
[426698067,1782749454000,-1810.95279807,0.00035,2]
[426698068,1782749454000,-150.0,0.00035059,2]
[426698070,1782749454000,-500.0,0.00035072,120]
[426698069,1782749454000,-2336.0,0.0003506,11]
[426698065,1782749454000,-800.0,0.00035,7]
[426698073,1782749454000,-174.52,0.00035123,120]
[426698064,1782749454000,-1500.0,0.00035,2]
[426698075,1782749454000,-10351.40320883,0.000352,2]
[426698074,1782749454000,-5357.0,0.00035124,10]
[426698072,1782749454000,-3565.0,0.00035078,2]
[426698078,1782749454000,-273.33010035,0.0003539,2]
[426698079,1782749454000,-277.75933079,0.000354,30]
[426698083,1782749454000,-5800.0,0.00035437,2]
[426698080,1782749454000,-2010.0,0.000354,7]
[426698076,1782749454000,-151.09934801,0.00035209,2]
[426698077,1782749454000,-162.92,0.0003523,30]
[426698084,1782749454000,-5800.0,0.00035445,2]
[426698082,1782749454000,-5800.0,0.00035428,2]
[426698086,1782749454000,-601.55181803,0.00035454,120]
[426698087,1782749454000,-500.0,0.00035454,120]
[426698081,1782749454000,-200.0,0.000354,11]
[426698085,1782749454000,-151.0,0.00035452,14]
[426698099,1782749454000,-151.09934801,0.00035529,2]
[426698089,1782749454000,-37794.80781514,0.00035455,60]
[426698100,1782749454000,-418546.443385,0.00035531,2]
[426698092,1782749454000,-284.93457659,0.0003549,2]
[426698122,1782749454000,-151.0,0.00035616,30]
[426698175,1782749454000,-151.0,0.00035616,30]
[426698119,1782749454000,-151.0,0.00035616,30]
[426698156,1782749454000,-151.0,0.00035616,30]
[426698160,1782749454000,-151.0,0.00035616,30]
[426698161,1782749454000,-151.0,0.00035616,30]
[426698157,1782749454000,-183.407149,0.00035616,30]
[426698154,1782749454000,-151.0,0.00035616,30]
[426698151,1782749454000,-151.0,0.00035616,30]
[426698163,1782749454000,-151.0,0.00035616,30]
[426698162,1782749454000,-215.895414,0.00035616,30]
[426698165,1782749454000,-151.0,0.00035616,30]
[426698166,1782749454000,-151.0,0.00035616,30]
[426698164,1782749454000,-151.0,0.00035616,30]
[426698167,1782749454000,-194.907649,0.00035616,30]
[426698171,1782749454000,-151.0,0.00035616,30]
[426698168,1782749454000,-151.0,0.00035616,30]
[426698170,1782749454000,-151.0,0.00035616,30]
[426698172,1782749454000,-151.0,0.00035616,30]
[426698169,1782749454000,-151.0,0.00035616,30]
[426698173,1782749454000,-151.0,0.00035616,30]
[426698176,1782749454000,-151.0,0.00035616,30]
[426698179,1782749454000,-151.0,0.00035616,30]
[426698183,1782749454000,-151.0,0.00035616,30]
[426698174,1782749454000,-151.0,0.00035616,30]
[426698180,1782749454000,-196.878232,0.00035616,30]
[426698178,1782749454000,-170.735041,0.00035616,30]
[426698182,1782749454000,-151.0,0.00035616,30]
[426698118,1782749454000,-600.0,0.00035616,120]
[426698181,1782749454000,-151.0,0.00035616,30]
[426698159,1782749454000,-239.909808,0.00035616,30]
[426698158,1782749454000,-151.0,0.00035616,30]
[426698177,1782749454000,-209.606196,0.00035616,30]
[426698155,1782749454000,-221.152729,0.00035616,30]
[426698153,1782749454000,-151.0,0.00035616,30]
[426698126,1782749454000,-151.0,0.00035616,30]
[426698127,1782749454000,-151.0,0.00035616,30]
[426698132,1782749454000,-265.274564,0.00035616,30]
[426698131,1782749454000,-265.274564,0.00035616,30]
[426698129,1782749454000,-151.0,0.00035616,30]
[426698130,1782749454000,-265.274564,0.00035616,30]
[426698133,1782749454000,-265.274564,0.00035616,30]
[426698128,1782749454000,-210.528454,0.00035616,30]
[426698135,1782749454000,-265.274564,0.00035616,30]
[426698134,1782749454000,-265.274564,0.00035616,30]
[426698136,1782749454000,-265.274564,0.00035616,30]
[426698137,1782749454000,-265.274564,0.00035616,30]
[426698121,1782749454000,-151.0,0.00035616,30]
[426698149,1782749454000,-265.274568,0.00035616,30]
[426698152,1782749454000,-151.0,0.00035616,30]
[426698150,1782749454000,-151.0,0.00035616,30]
[426698146,1782749454000,-265.274564,0.00035616,30]
[426698144,1782749454000,-265.274564,0.00035616,30]
[426698139,1782749454000,-265.274564,0.00035616,30]
[426698148,1782749454000,-265.274564,0.00035616,30]
[426698147,1782749454000,-265.274564,0.00035616,30]
[426698141,1782749454000,-265.274564,0.00035616,30]
[426698143,1782749454000,-265.274564,0.00035616,30]
[426698140,1782749454000,-265.274564,0.00035616,30]
[426698138,1782749454000,-265.274564,0.00035616,30]
[426698142,1782749454000,-265.274564,0.00035616,30]
[426698145,1782749454000,-265.274564,0.00035616,30]
[426698224,1782749455000,-2336.0,0.00035745,11]
[426698231,1782749455000,-375.97,0.00035852,3]
[426698221,1782749455000,-160.0,0.00035696,11]
[426698222,1782749455000,-150.0,0.00035702,2]
[426698215,1782749455000,-463.27689485,0.00035672,120]
[426698213,1782749455000,-176.4163441,0.00035655,120]
[426698216,1782749455000,-379.04473215,0.00035672,120]
[426698211,1782749455000,-955.7894778,0.00035655,120]
[426698214,1782749455000,-150.0,0.00035663,60]
[426698218,1782749455000,-176.1879613,0.00035672,120]
[426698217,1782749455000,-276.89924756,0.00035672,120]
[426698225,1782749455000,-2336.0,0.00035746,11]
[426698230,1782749455000,-151.09934801,0.00035849,2]
[426698223,1782749455000,-150832.0377663,0.00035724,2]
[426698226,1782749455000,-160.0,0.00035762,11]
[426698228,1782749455000,-502.0,0.00035806,19]
[426698229,1782749455000,-151.0,0.00035838,2]
[426698233,1782749455000,-162.92,0.0003587,98]
[426698244,1782749455000,-800.0,0.00036,7]
[426698232,1782749455000,-2336.0,0.00035864,11]
[426698243,1782749455000,-199.95381872,0.00036,120]
[426698234,1782749455000,-263334.0,0.0003589,30]
[426698235,1782749455000,-307.00013613,0.000359,120]
[426698237,1782749455000,-2065.71,0.000359,30]
[426698219,1782749455000,-4119.0554933,0.00035681,3]
[426698227,1782749455000,-333.83,0.00035794,120]
[426698212,1782749455000,-152.5674493,0.00035655,120]
[426698199,1782749455000,-151.0,0.00035616,30]
[426698220,1782749455000,-160.0,0.00035686,11]
[426698238,1782749455000,-2336.0,0.00035968,11]
[426698184,1782749455000,-151.0,0.00035616,30]
[426698186,1782749455000,-151.0,0.00035616,30]
[426698196,1782749455000,-151.0,0.00035616,30]
[426698185,1782749455000,-151.0,0.00035616,30]
[426698189,1782749455000,-151.0,0.00035616,30]
[426698187,1782749455000,-151.0,0.00035616,30]
[426698188,1782749455000,-151.0,0.00035616,30]
[426698191,1782749455000,-151.0,0.00035616,30]
[426698190,1782749455000,-151.0,0.00035616,30]
[426698193,1782749455000,-241.90116,0.00035616,30]
[426698195,1782749455000,-151.0,0.00035616,30]
[426698192,1782749455000,-151.0,0.00035616,30]
[426698194,1782749455000,-151.0,0.00035616,30]
[426698200,1782749455000,-151.0,0.00035616,30]
[426698197,1782749455000,-151.0,0.00035616,30]
[426698203,1782749455000,-263.2,0.00035616,30]
[426698202,1782749455000,-294.03838,0.00035616,30]
[426698204,1782749455000,-261.591312,0.00035616,30]
[426698206,1782749455000,-1042.16423137,0.00035642,2]
[426698208,1782749455000,-150.00000001,0.00035649,2]
[426698207,1782749455000,-2336.0,0.00035648,11]
[426698201,1782749455000,-151.0,0.00035616,30]
[426698205,1782749455000,-181.607956,0.00035617,120]
[426698210,1782749455000,-174.0,0.00035649,7]
[426698209,1782749455000,-347.0,0.00035649,7]
[426698236,1782749455000,-10351.40320883,0.000359,2]
[426698198,1782749455000,-151.0,0.00035616,30]
[426698242,1782749455000,-549.36055093,0.00036,120]
[426698276,1782749455000,-542.61678729,0.00036341,2]
[426698270,1782749455000,-10351.40320883,0.000363,2]
[426698272,1782749455000,-2336.0,0.00036315,11]
[426698271,1782749455000,-1580.07,0.000363,30]
[426698273,1782749455000,-2336.0,0.00036326,11]
[426698274,1782749455000,-2336.0,0.00036336,11]
[426698277,1782749455000,-607.06,0.0003635,2]
[426698281,1782749455000,-370.82,0.00036362,60]
[426698291,1782749455000,-6087.0,0.00036457,2]
[426698296,1782749455000,-903.0,0.000365,30]
[426698280,1782749455000,-211.01,0.00036362,60]
[426698283,1782749455000,-103963.47879846,0.000364,2]
[426698287,1782749455000,-1250.5027898,0.00036448,2]
[426698285,1782749455000,-1278.0,0.0003641,2]
[426698282,1782749455000,-160.0,0.00036381,11]
[426698286,1782749455000,-1230.0,0.00036419,2]
[426698288,1782749455000,-161.1424061,0.00036452,60]
[426698289,1782749455000,-2336.0,0.00036453,11]
[426698290,1782749455000,-935.0,0.00036457,2]
[426698292,1782749455000,-542.61678729,0.0003646,2]
[426698294,1782749455000,-44664.35839246,0.00036499,2]
[426698297,1782749455000,-152888.64125551,0.000365,36]
[426698295,1782749455000,-208.22616717,0.00036499,2]
[426698293,1782749455000,-151.09934801,0.0003649,2]
[426698241,1782749455000,-11237.90699933,0.00036,30]
[426698278,1782749455000,-182.12,0.0003635,2]
[426698275,1782749455000,-190.96,0.00036337,2]
[426698284,1782749455000,-283.0,0.0003641,2]
[426698269,1782749455000,-1500.0,0.00036299,2]
[426698279,1782749455000,-10431.19277639,0.00036359,2]
[426698239,1782749455000,-160.0,0.00035968,11]
[426698240,1782749455000,-424.0,0.00036,30]
[426698245,1782749455000,-2546.42764753,0.00036,7]
[426698247,1782749455000,-8017.0,0.00036,106]
[426698249,1782749455000,-2336.0,0.00036006,11]
[426698252,1782749455000,-160.0,0.00036047,11]
[426698248,1782749455000,-453.0,0.00036004,11]
[426698256,1782749455000,-151.0,0.00036087,7]
[426698250,1782749455000,-160.0,0.00036006,11]
[426698251,1782749455000,-160.0,0.00036018,11]
[426698253,1782749455000,-151.0,0.00036087,7]
[426698255,1782749455000,-151.0,0.00036087,7]
[426698257,1782749455000,-151.0,0.00036087,7]
[426698254,1782749455000,-151.0,0.00036087,7]
[426698263,1782749455000,-151.09934801,0.00036169,2]
[426698246,1782749455000,-800.0,0.00036,7]
[426698267,1782749455000,-1250.5027898,0.00036287,2]
[426698262,1782749455000,-189.0,0.00036133,11]
[426698264,1782749455000,-2739.88914127,0.0003618,30]
[426698268,1782749455000,-1500.0,0.00036299,2]
[426698266,1782749455000,-208.22616717,0.00036253,2]
[426698261,1782749455000,-2336.0,0.00036133,11]
[426698260,1782749455000,-391.6,0.00036122,10]
[426698258,1782749455000,-151.0,0.00036087,7]
[426698259,1782749455000,-200.0,0.00036099,10]
[426698265,1782749455000,-1858.05655181,0.0003625,7]
[426698322,1782749456000,-185.19,0.0003666,2]
[426698326,1782749456000,-150.0,0.00036665,7]
[426698317,1782749456000,-160.0,0.00036644,11]
[426698323,1782749456000,-185.28,0.0003666,2]
[426698320,1782749456000,-2336.0,0.00036656,11]
[426698324,1782749456000,-150.0,0.00036665,7]
[426698319,1782749456000,-2336.0,0.00036656,11]
[426698325,1782749456000,-150.0,0.00036665,7]
[426698328,1782749456000,-514.66615445,0.00036675,2]
[426698329,1782749456000,-200.0,0.00036695,10]
[426698330,1782749456000,-10351.40320883,0.000367,2]
[426698331,1782749456000,-19145.98224947,0.00036702,5]
[426698335,1782749456000,-1250.5027898,0.00036726,2]
[426698334,1782749456000,-2336.0,0.00036706,11]
[426698332,1782749456000,-185.37,0.00036703,2]
[426698318,1782749456000,-160.0,0.00036646,11]
[426698333,1782749456000,-268.92,0.00036703,2]
[426698327,1782749456000,-266.231,0.00036665,7]
[426698315,1782749456000,-232.27697583,0.00036624,3]
[426698303,1782749456000,-480121.69401951,0.000365,36]
[426698316,1782749456000,-2336.0,0.0003663,11]
[426698336,1782749456000,-514.66615445,0.0003673,2]
[426698300,1782749456000,-748.06289741,0.000365,36]
[426698298,1782749456000,-44870.07512696,0.000365,36]
[426698299,1782749456000,-216.58458871,0.00031,7]
[426698302,1782749456000,-151.0,0.0003226,7]
[426698301,1782749456000,-280.35220067,0.000365,36]
[426698313,1782749456000,-270.68786606,0.00036592,2]
[426698304,1782749456000,-437.37,0.000365,7]
[426698312,1782749456000,-285.2485385,0.00036592,2]
[426698310,1782749456000,-514.66615445,0.00036541,2]
[426698308,1782749456000,-205.2299367,0.00036525,8]
[426698311,1782749456000,-260.0,0.00036564,41]
[426698307,1782749456000,-162.92,0.0003651,120]
[426698306,1782749456000,-800.0,0.000365,7]
[426698309,1782749456000,-542.61678729,0.00036536,2]
[426698305,1782749456000,-800.0,0.000365,7]
[426698314,1782749456000,-333.83,0.00036616,120]
[426698321,1782749456000,-903.0,0.00036658,30]
[426698338,1782749456000,-502.0,0.00036746,20]
[426698337,1782749456000,-208.22616717,0.00036745,2]
[426698340,1782749456000,-300.52,0.00036778,120]
[426698363,1782749456000,-1500.0,0.00036814,5]
[426698365,1782749456000,-1500.0,0.00036814,5]
[426698366,1782749456000,-1500.0,0.00036814,5]
[426698367,1782749456000,-667.98162812,0.00036814,5]
[426698361,1782749456000,-1500.0,0.00036814,5]
[426698364,1782749456000,-1500.0,0.00036814,5]
[426698370,1782749456000,-322.0,0.00036931,3]
[426698371,1782749456000,-159.89118465,0.00036931,120]
[426698362,1782749456000,-1500.0,0.00036814,5]
[426698369,1782749456000,-2065.71,0.000369,30]
[426698373,1782749456000,-200.0,0.00036937,10]
[426698374,1782749456000,-152.0,0.00036938,9]
[426698376,1782749456000,-160.0,0.00036959,11]
[426698378,1782749456000,-161.6,0.00036962,5]
[426698377,1782749456000,-432.56,0.00036962,5]
[426698379,1782749456000,-1037.02,0.00036962,5]
[426698375,1782749456000,-514.66615445,0.00036949,2]
[426698342,1782749456000,-243.57,0.00036778,120]
[426698372,1782749456000,-17069.22054756,0.00036932,2]
[426698360,1782749456000,-1500.0,0.00036814,5]
[426698368,1782749456000,-514.66615445,0.00036853,2]
[426698355,1782749456000,-1500.0,0.00036814,5]
[426698341,1782749456000,-1187.23,0.00036778,120]
[426698358,1782749456000,-1500.0,0.00036814,5]
[426698339,1782749456000,-1055.14,0.00036778,120]
[426698343,1782749456000,-1750.0,0.00036791,5]
[426698347,1782749456000,-156.02067132,0.00036814,5]
[426698344,1782749456000,-151.09934801,0.0003681,2]
[426698345,1782749456000,-7143.0,0.00036812,10]
[426698359,1782749456000,-1500.0,0.00036814,5]
[426698346,1782749456000,-151.0,0.00036814,5]
[426698348,1782749456000,-1500.0,0.00036814,5]
[426698350,1782749456000,-1500.0,0.00036814,5]
[426698351,1782749456000,-1500.0,0.00036814,5]
[426698352,1782749456000,-1500.0,0.00036814,5]
[426698353,1782749456000,-1500.0,0.00036814,5]
[426698354,1782749456000,-1500.0,0.00036814,5]
[426698349,1782749456000,-1500.0,0.00036814,5]
[426698356,1782749456000,-1500.0,0.00036814,5]
[426698357,1782749456000,-1500.0,0.00036814,5]
[426698404,1782749457000,-176.7,0.00037,2]
[426698414,1782749457000,-340.76,0.00037037,120]
[426698412,1782749457000,-2336.0,0.00037007,11]
[426698416,1782749457000,-3524.0,0.0003705,120]
[426698417,1782749457000,-33655.1767423,0.0003707,2]
[426698409,1782749457000,-800.0,0.00037,45]